[Event "SixDays Budapest March GM-A 2023"]
[Site "Budapest"]
[Date "2023.03.25"]
[Round "3.5"]
[White "Bodi, Tibor"]
[Black "Sammed Jaykumar, Shete"]
[Result "1-0"]
[ECO "B30"]
[WhiteElo "2356"]
[BlackElo "2454"]
[Annotator "TA"]
[PlyCount "61"]
[EventDate "2023.03.24"]
[EventType "tourn"]
[EventCountry "HUN"]
[SourceTitle "playchess.com"]
[Source "ChessBase"]
[SourceQuality "1"]
[TimeControl "5400+30"]

{[%evp 14,61,12,8,22,22,134,112,100,108,131,133,177,193,306,307,291,140,424,422,391,396,348,339,568,568,553,550,556,468,458,469,458,407,379,366,1195,1195,1014,625,793,628,637,634,610,548,521,521,531,486]} 1. e4 {[%emt 0:15:25]} c5 {[%emt 0:03:59]} 2. Nf3 {[%emt 0:00:16]} Nc6 {[%emt 0:00:05]} 3. Bb5 {[%emt 0:00:15]} e6 {[%emt 0:00:05]} 4. O-O {[%emt 0:00:15]} Nge7 {[%emt 0:00:03]} 5. c3 {[%emt 0:00:47]} a6 {[%emt 0:00:09]} 6. Ba4 {[%emt 0:03:33][%cal Bb5a4,Ba4c2,Bc2e4][%mdl 32]} b5 {[%emt 0:00:14]} 7. Bc2 {[%emt 0:00:06]} Bb7 {[%emt 0:00:05]} 8. Re1 {[%emt 0:01:23]} Ng6 {[%emt 0:01:26] B30: Sicilian: 2...Nc6 3 Bb5, lines without ...g6.} 9. d4 {[%emt 0:01:03][%cal Bd2d4,Bd4d5][%mdl 32]} d5 {[%emt 0:06:41]} (9... Bd6 $11) 10. exd5 {[%emt 0:00:59]} Qxd5 {[%emt 0:00:06] [#] White is better.} 11. Be4 $146 {[%emt 0:01:54]} ({Predecessor:} 11. a4 Be7 12. axb5 axb5 13. Rxa8+ Bxa8 14. dxc5 Qxd1 15. Rxd1 Bxc5 16. b4 Bb6 {½-½ Samaritani,F (2265)-Zedek,A (2275) Ischia op 1994}) 11... Qd7 {[%emt 0:04:15] [#]} 12. d5 $1 {[%emt 0:05:48] White is more active.} O-O-O {[%emt 0:01:50][%cal Re6d5] [#]} (12... Nce5 $2 13. Nxe5 Nxe5 14. Qh5) 13. Qc2 $1 {[%emt 0:00:34]} Nb8 {[%emt 0:03:33]} (13... Nce5 $142) 14. c4 $18 {[%emt 0:02:08]} b4 {[%emt 0:04:14]} (14... exd5 $2 15. Bf5 $18) 15. a3 {[%emt 0:05:16]} (15. Nbd2 $18 {is more deadly.}) 15... Be7 $2 {[%emt 0:06:19][%mdl 8192] A mistake that costs the game.} (15... b3 $16 16. Qxb3 exd5 17. cxd5 Bxd5 18. Bxd5 Qxd5 19. Qxd5 Rxd5) 16. axb4 {[%emt 0:02:32]} cxb4 {[%emt 0:00:33]} 17. Nbd2 {[%emt 0:00:35]} Qc7 {[%emt 0:02:41]} 18. dxe6 {[%emt 0:03:04]} Nc6 $2 {[%emt 0:00:07]} (18... fxe6 {is a better defense.} 19. Nb3 Rhe8 20. Bxb7+ Qxb7 21. Rxe6 Bf8) 19. exf7 {[%emt 0:02:15]} Rhf8 {[%emt 0:00:11]} 20. Bd5 {[%emt 0:06:47]} Kb8 {[%emt 0:03:11]} 21. Qe4 {[%emt 0:02:43]} Bf6 {[%emt 0:01:05]} 22. Nb3 {[%emt 0:00:35]} Rxf7 {[%emt 0:02:01]} 23. Bxf7 {[%emt 0:01:18]} Nd4 {[%emt 0:04:47]} 24. Bd5 {[%emt 0:01:26]} ({Don't take} 24. Nbxd4 Bxe4 25. Rxe4 Qxf7 $18) 24... Rxd5 {[%emt 0:00:07]} (24... Nxb3 25. Rb1 Nc5) 25. cxd5 {[%emt 0:00:47] White is clearly winning.} ({Not} 25. Nfxd4 Re5 $16) 25... Nxb3 {[%emt 0:00:04]} 26. Qe8+ {[%emt 0:00:43]} Qc8 {[%emt 0:00:06]} 27. Ra4 {[%emt 0:05:23]} Qxe8 {[%emt 0:00:43]} 28. Rxe8+ {[%emt 0:00:07]} Kc7 {[%emt 0:00:02]} 29. Bg5 {[%emt 0:00:39]} a5 {[%emt 0:01:18]} 30. Bxf6 {[%emt 0:00:10] Strongly threatening Bd8+.} gxf6 {[%emt 0:00:05]} 31. Re3 {[%emt 0:00:34] Weighted Error Value: White=0.62/Black=0.48} 1-0

[Event "SixDays Budapest March GM-A 2023"]
[Site "Budapest"]
[Date "2023.03.26"]
[Round "4.1"]
[White "Rosh Jain"]
[Black "Sammed Jaykumar, Shete"]
[Result "0-1"]
[ECO "B28"]
[WhiteElo "2325"]
[BlackElo "2454"]
[Annotator "TA"]
[PlyCount "94"]
[EventDate "2023.03.24"]
[EventType "tourn"]
[EventCountry "HUN"]
[SourceTitle "playchess.com"]
[Source "ChessBase"]
[SourceQuality "1"]
[TimeControl "5400+30"]

{[%evp 9,94,69,68,69,81,66,83,37,56,38,63,35,68,66,68,62,64,28,42,33,40,33,37,20,72,71,72,68,76,70,100,68,89,54,124,-31,-17,-37,-6,-24,0,0,0,0,0,0,0,-117,-24,-36,-29,-55,-43,-43,-38,-97,-113,-125,-125,-118,-97,-105,-56,-179,-179,-183,-155,-634,-337,-854,-858,-1258,-1295,-1292,-1284,-1255,-1170,-1033,-681,-1520,-1459,-880,-766,-29991,-29992,-29992,-1175]} 1. e4 {[%emt 0:00:32]} c5 {[%emt 0:00:37]} 2. Nf3 {[%emt 0:00:08]} a6 {[%emt 0:00:12]} 3. c4 {[%emt 0:02:37]} d6 {[%emt 0:03:24]} 4. d4 {[%emt 0:00:51]} Bg4 {[%emt 0:01:49]} 5. d5 {[%emt 0:07:16]} Nd7 {[%emt 0:01:14]} 6. Be2 {[%emt 0:00:51] B28: Sicilian: 2 Nf3 a6 (O'Kelly Variation).} Bxf3 {[%emt 0:00:11]} 7. Bxf3 {[%emt 0:00:18]} (7. gxf3 g6 $11) 7... b5 {[%emt 0:00:38] [#]} 8. b3 $146 {[%emt 0:01:44]} ({Better is} 8. Be2 $16) ({Predecessor:} 8. O-O Ngf6 9. Nd2 g6 10. Be2 bxc4 11. Bxc4 Nb6 12. Qe2 Nxc4 13. Nxc4 Bg7 14. Bg5 {1-0 Mainka,R-Hoermann,G GER U20-ch Bad Lauterberg 1981 (3)}) 8... Ngf6 {[%emt 0:04:29]} 9. Bb2 {[%emt 0:01:13]} g6 {[%emt 0:01:23]} 10. Nd2 {[%emt 0:01:56]} b4 {[%emt 0:01:17]} 11. O-O {[%emt 0:02:46]} Bg7 {[%emt 0:00:05]} 12. g3 {[%emt 0:00:56]} O-O {[%emt 0:00:08]} 13. Qe2 {[%emt 0:02:59]} Ne8 {[%emt 0:11:48]} 14. Bxg7 {[%emt 0:01:23]} Nxg7 {[%emt 0:00:08]} 15. Bg2 {[%emt 0:03:34]} a5 {[%emt 0:03:32]} 16. a4 {[%emt 0:02:38]} Qc7 {[%emt 0:02:27]} (16... e5 $11) 17. f4 $16 {[%emt 0:02:17]} Rae8 {[%emt 0:03:53]} 18. Rae1 {[%emt 0:01:38]} e6 {[%emt 0:00:38]} 19. Qd3 {[%emt 0:05:31]} Re7 {[%emt 0:01:14]} 20. Re2 {[%emt 0:04:23]} Rfe8 {[%emt 0:00:37]} 21. Rfe1 {[%emt 0:00:09]} exd5 {[%emt 0:07:28]} (21... Qa7 $14) 22. exd5 $2 {[%emt 0:06:27]} (22. cxd5 $16 {[%cal Oe4e5]} f6 23. Nc4) 22... Nf6 $15 {[%emt 0:01:26]} 23. Bh3 {[%emt 0:02:19]} Qd8 {[%emt 0:01:30]} 24. Kf2 {[%emt 0:03:48]} h6 {[%emt 0:00:16]} 25. Rxe7 {[%emt 0:02:12]} Rxe7 {[%emt 0:00:06]} 26. Rxe7 {[%emt 0:00:07]} Qxe7 {[%emt 0:00:03]} 27. Qe2 {[%emt 0:01:09]} Qd8 {[%emt 0:00:09]} 28. Ne4 {[%emt 0:10:05]} (28. g4 $11 {keeps the balance.}) 28... Nfe8 {[%emt 0:02:39]} ({Black should play} 28... Nxe4+ $17 29. Qxe4 Qf6) 29. g4 {[%emt 0:10:56]} f5 {[%emt 0:19:52]} 30. Ng3 $1 {[%emt 0:02:26][%cal Rg4f5]} fxg4 {[%emt 0:00:29]} 31. Bxg4 {[%emt 0:01:17]} Qf6 {[%emt 0:00:09]} 32. Qe3 {[%emt 0:02:07]} (32. Qe4 $15) 32... Qb2+ $17 {[%emt 0:01:04]} 33. Kg1 {[%emt 0:01:01]} Nf6 {[%emt 0:00:58]} 34. Be6+ {[%emt 0:01:21]} (34. Be2 h5 35. Bf3 (35. Qe7 $2 Qd4+ 36. Kg2 Qxf4 $19) 35... Kh7) 34... Kh7 {[%emt 0:02:05] Black is more active.} 35. h3 {[%emt 0:01:15]} Qc2 {[%emt 0:04:23]} (35... Qb1+ $17 36. Kh2 (36. Nf1 Ne4 $15) 36... h5) 36. Bc8 {[%emt 0:02:12] [#]} (36. Kf1 $1 $15) 36... h5 $1 $19 {[%emt 0:02:10][%cal Bh6h5,Bh5h4][%mdl 32]} 37. Ne2 {[%emt 0:09:00]} Ne4 {[%emt 0:00:41] And now ...Nc3 would win.} 38. Be6 $2 {[%emt 0:01:06] Now White is beyond hope.} (38. Ng3 $17 Nd2 39. f5) 38... h4 {[%emt 0:01:28] ...Nf5 is the strong threat.} 39. Bg4 {[%emt 0:01:43]} (39. Kg2) 39... Nf5 {[%emt 0:02:27]} 40. Bxf5 {[%emt 0:00:09]} gxf5 {[%emt 0:00:05][%mdl 4096] Endgame KQN-KQN} 41. Kg2 {[%emt 0:01:26]} Kg7 {[%emt 0:02:00]} 42. Kg1 {[%emt 0:00:36]} Qd1+ {[%emt 0:00:35]} 43. Kg2 {[%emt 0:00:48]} Kf8 {[%emt 0:03:16] Hoping for ...Qe1.} 44. Qf3 {[%emt 0:00:44]} Nd2 {[%emt 0:01:18][%csl LRb3,LRf3][%mdl 64] [#] Deflection, Double Attack} 45. Qf2 {[%emt 0:00:51]} Qxb3 {[%emt 0:00:04] ( -> ...Qd1)} 46. Qxh4 {[%emt 0:01:52]} Qf3+ {[%emt 0:00:07]} (46... Qxa4 47. Qh6+ Kg8 48. Qg6+ (48. Qxd6 Qe8 $15) 48... Kh8 49. Qh5+ (49. Qxf5 Qa1 $11) 49... Kg7 50. Qg5+ (50. Qxf5 Qd1 $11) 50... Kh8 51. Qf6+ (51. Qxf5 Qa1 $11) 51... Kg8 52. Qg6+ (52. Qxd6 Qe8 $15) 52... Kh8 53. Qh6+ (53. Qxf5 Qe8 $11) 53... Kg8 54. Qg6+ $11 (54. Qxd6 Qe8 $15)) 47. Kg1 {[%emt 0:00:05]} Qf1+ {Weighted Error Value: White=0.81/Black=0.27 (precise)} 0-1

[Event "SixDays Budapest March GM-A 2023"]
[Site "Budapest"]
[Date "2023.03.26"]
[Round "4.2"]
[White "Arfan, Aditya Bagus"]
[Black "Bodi, Tibor"]
[Result "1-0"]
[ECO "C45"]
[WhiteElo "2374"]
[BlackElo "2356"]
[Annotator "TA"]
[PlyCount "171"]
[EventDate "2023.03.24"]
[EventType "tourn"]
[EventCountry "HUN"]
[SourceTitle "playchess.com"]
[Source "ChessBase"]
[SourceQuality "1"]
[TimeControl "5400+30"]

{[%evp 16,171,26,30,25,25,44,27,41,31,54,37,49,29,41,59,89,12,13,9,72,53,48,37,49,49,57,44,36,52,97,104,145,145,127,164,190,191,240,267,267,204,269,246,283,275,589,187,191,110,236,172,190,108,183,146,178,187,186,136,116,87,117,77,71,0,0,0,0,0,0,0,8,0,118,15,67,0,102,43,67,0,77,77,88,0,82,80,127,0,28,37,129,0,0,0,0,0,0,0,29,21,85,19,29,31,34,21,25,18,22,16,18,0,0,0,0,0,0,0,0,0,0,0,0,0,0,0,8,8,29976,29963,29963,29963,29964,29964,29962,29963,29970,29973,29973,29974,29973,29975,29975,29975,29976,29976,29976,29977,29978,29980,29980,29981,29981,29982,29987,29982]} 1. e4 {[%emt 0:00:33]} e5 {[%emt 0:00:42]} 2. Nf3 {[%emt 0:00:06]} Nc6 {[%emt 0:00:01]} 3. d4 {[%emt 0:00:06]} exd4 {[%emt 0:00:04]} 4. Nxd4 {[%emt 0:00:02]} Bc5 {[%emt 0:00:10]} 5. Nxc6 {[%emt 0:00:04]} bxc6 {[%emt 0:00:29]} 6. Bd3 {[%emt 0:00:02]} d6 {[%emt 0:03:25]} 7. O-O {[%emt 0:00:05]} Ne7 {[%emt 0:01:01] has lost popularity (7...Nf6).} 8. Nc3 {[%emt 0:04:10]} O-O {[%emt 0:00:49]} 9. Kh1 {[%emt 0:02:04]} f5 {[%emt 0:07:34] [#] C45: Scotch Game.} 10. b3 $146 {[%emt 0:16:07]} ({Predecessor:} 10. f4 fxe4 11. Nxe4 Bb6 12. Qh5 Nf5 13. Bd2 g6 14. Qg5 d5 15. Qxd8 Rxd8 16. Ng5 c5 17. c3 {0-1 Sozin,S (2123)-Khabarov,S (2313) Sibiria Region-ch 2012 (4)}) 10... f4 {[%emt 0:02:27][%cal Of4f3]} 11. Na4 {[%emt 0:01:51]} Bb6 {[%emt 0:01:18] White has an edge.} 12. Bb2 {[%emt 0:08:13]} f3 {[%emt 0:05:49]} 13. gxf3 {[%emt 0:01:21]} Ng6 {[%emt 0:00:01]} 14. Nxb6 {[%emt 0:01:17]} axb6 {[%emt 0:00:07]} 15. Rg1 {[%emt 0:01:03]} Ra5 {[%emt 0:02:45] [#]} 16. e5 {[%emt 0:25:02]} Nxe5 $11 {[%emt 0:15:21]} 17. Be4 {[%emt 0:10:09]} Bf5 {[%emt 0:09:49] [#]} (17... Qe8 $11) 18. Bxc6 $1 $16 {[%emt 0:05:06] Strongly threatening b4.} Qh4 {[%emt 0:07:35]} (18... Nxc6 $2 19. Rxg7+ (19. Bxg7 Bg6 $17) 19... Kh8 20. Rd7+ $18 (20. Rxc7+ $2 Ne5 $17) (20. Rxc7+ $2 Ne5 $19)) 19. Rg3 {[%emt 0:03:55]} Bg6 {[%emt 0:09:05]} (19... Nxc6 $2 20. Rxg7+ Kh8 21. Rf7+ Kg8 22. Rg7+ Kh8 23. Rxc7+ Ne5 24. Qxd6 $18) 20. Bd5+ {[%emt 0:02:28] A strong pair of Bishops.} Kh8 {[%emt 0:01:40]} 21. Bxe5 {[%emt 0:11:37]} dxe5 {[%emt 0:00:02]} 22. c4 {[%emt 0:00:47]} e4 {[%emt 0:01:34]} 23. Qd4 {[%emt 0:01:37][%cal Rf3e4]} c5 {[%emt 0:02:08]} 24. Qe5 {[%emt 0:01:33][%cal Rd5e4]} Ra7 {[%emt 0:02:15]} 25. Qd6 $40 {[%emt 0:00:59][%cal Rd6f8][%mdl 128] White goes for the king.} (25. Bxe4 Re7 26. Rg4 Bxe4 27. Rxe4 Rxe5 28. Rxh4 Rxf3 $14) 25... Re7 {[%emt 0:07:26] [#]} 26. Re1 $1 {[%emt 0:01:28]} (26. Qxb6 $6 Bh5 27. Bxe4 Rxe4 28. fxe4 Qxe4+ 29. Kg1 Qd4 $16) 26... Rfe8 {[%emt 0:02:07]} (26... Qf6 $142 27. Qxf6 Rxf6) 27. Re3 $18 {[%emt 0:01:20]} (27. Qxb6 exf3 28. Reg1 (28. Rxe7 Qxe7 29. Bxf3 Be4 $11) 28... Re5) 27... Re5 {[%emt 0:04:36]} 28. Kg1 {[%emt 0:00:26]} (28. h3 $6 Qf6 29. Qxf6 gxf6 30. fxe4 Bxe4+ 31. Bxe4 Rxe4 $18) 28... Qh5 {[%emt 0:05:56]} 29. Kg2 {[%emt 0:00:43]} (29. Qxb6 exf3 30. Rexf3 (30. Qxc5 Rxe3 31. fxe3 f2+ 32. Kxf2 Be4 $14) (30. Bxf3 Qf5 $18) 30... Rxd5 31. cxd5 Qxd5 $18) 29... Qh4 {[%emt 0:02:37]} (29... exf3+ $2 30. Rgxf3 (30. Bxf3 Qf5 $16) 30... Rg5+ 31. Kf1 $18) 30. fxe4 {[%emt 0:00:34]} (30. Qxb6 exf3+ 31. Bxf3 Rxe3 32. fxe3 Rxe3 $16) 30... Bxe4+ $2 {[%emt 0:01:27]} (30... Qf6 {is tougher.} 31. Qxf6 gxf6) 31. Bxe4 $2 {[%emt 0:00:01]} (31. f3) 31... Rxe4 {[%emt 0:00:07]} 32. Qc7 {[%emt 0:01:01]} (32. Qxb6 Rxe3 33. Rxe3 (33. fxe3 $2 Qe4+ 34. Kg1 Qb1+ 35. Kf2 Qxa2+ 36. Ke1 Ra8 $19) 33... Rf8 $11) (32. Ref3 $18 {Rf8+ would kill now.} Qd8 33. Qxd8 Rxd8 34. Rf7) 32... g6 {[%emt 0:01:58]} (32... Rg8 $16) 33. Ref3 {[%emt 0:00:35]} (33. Qxb6 Rxe3 34. Rxe3 (34. fxe3 $2 Qe4+ 35. Kg1 Qb1+ 36. Kf2 Rf8+ 37. Rf3 Qb2+ {[%mdl 64] Skewer} 38. Ke1 Rxf3 $19) 34... Rf8 $11) 33... Qd8 {[%emt 0:01:27]} 34. Qf7 {[%emt 0:00:14]} (34. Qxd8 $18 Rxd8 35. Rf6) 34... Qe7 {[%emt 0:00:22] Against Rf8+} (34... R8e7 $16 35. Qf6+ Kg8) 35. Qxe7 {[%emt 0:00:41]} R8xe7 {[%emt 0:01:16][%mdl 4096] Endgame KRR-KRR} 36. Re3 {[%emt 0:00:12]} R4e6 {[%emt 0:02:24]} 37. Rgf3 {[%emt 0:00:41]} (37. Rxe6 $18 Rxe6 38. Re3) 37... Kg7 $16 {[%emt 0:00:07]} 38. a3 {[%emt 0:00:40]} h5 {[%emt 0:00:32]} 39. h4 {[%emt 0:00:29]} Re4 {[%emt 0:00:10]} 40. Rxe4 {[%emt 0:00:22]} (40. Kf1 $16) 40... Rxe4 {[%emt 0:00:05] KR-KR} 41. Kh3 {[%emt 0:00:39]} Re1 {[%emt 0:00:14]} 42. Kg3 {[%emt 0:00:30]} Rg1+ {[%emt 0:00:11]} 43. Kh3 {[%emt 0:00:30]} Rb1 {[%emt 0:00:15]} 44. Kg2 {[%emt 0:00:19]} Kh6 {[%emt 0:00:13]} (44... Rd1 $11) 45. Rg3 {[%emt 0:00:21]} ({Better is} 45. a4 $16) 45... Kg7 {[%emt 0:00:09]} (45... g5 $11) 46. Rf3 {[%emt 0:00:01]} Kh6 {[%emt 0:00:06]} 47. Kh2 {[%emt 0:00:10]} (47. a4 $16) 47... Kg7 $14 {[%emt 0:00:13]} 48. Kg2 {[%emt 0:01:04]} Kh6 {[%emt 0:00:07]} 49. Rd3 {[%emt 0:00:05]} Kg7 {[%emt 0:02:31]} 50. Rf3 {[%emt 0:00:06]} Kh6 {[%emt 0:00:15]} 51. a4 {[%emt 0:00:01]} Kg7 {[%emt 0:00:11]} 52. Kh2 {[%emt 0:01:49]} ({White must play} 52. Rd3 $16) 52... Rb2 {[%emt 0:00:20]} 53. Kg3 {[%emt 0:00:06]} Rb1 {[%emt 0:01:24]} (53... Rd2 $14) 54. Kf4 {[%emt 0:00:02]} ({White has to play} 54. Rd3 $16) 54... Rh1 $1 $11 {[%emt 0:00:09]} 55. Kg3 {[%emt 0:00:36]} Rg1+ {[%emt 0:00:08]} 56. Kh2 {[%emt 0:00:08]} Rg4 {[%emt 0:00:22]} 57. Kh3 {[%emt 0:00:04]} Rg1 {[%emt 0:00:05]} 58. Rd3 {[%emt 0:00:38] aiming for Rd6.} Rb1 {[%emt 0:00:21]} (58... Rh1+ $1 $11 {remains equal.} 59. Kg3 Rb1) 59. Kg3 {[%emt 0:00:01]} (59. Kg2 $16) 59... Rg1+ $1 {[%emt 0:00:27]} 60. Kf3 {[%emt 0:00:16] Hoping for Rd7+.} Rh1 {[%emt 0:00:09]} 61. Rd7+ {[%emt 0:01:48]} Kh6 {[%emt 0:00:10]} 62. Rb7 {[%emt 0:00:14] Kg3 is the strong threat.} Rh3+ {[%emt 0:00:28]} 63. Ke4 {[%emt 0:01:20]} Rxb3 {[%emt 0:00:52]} 64. a5 {[%emt 0:00:06]} (64. Rb8 $5 {[%cal Ra4a5]} Rb4 65. Kd5 $14) 64... Rb4 {[%emt 0:00:51]} 65. axb6 {[%emt 0:00:34]} Rxc4+ {[%emt 0:00:10]} 66. Kd5 {[%emt 0:00:01]} Rxh4 {[%emt 0:00:13]} 67. Rf7 {[%emt 0:02:00]} (67. Kxc5 $6 Rf4 $16) 67... Rb4 {[%emt 0:00:15]} 68. Kxc5 {[%emt 0:00:03]} Rb2 {[%emt 0:00:23]} 69. b7 {[%emt 0:00:14] Kc6 would be deadly.} h4 {[%emt 0:02:20]} 70. Kc6 {[%emt 0:01:05] Intending Rf8 and mate.} Rc2+ $1 {[%emt 0:00:14]} (70... h3 71. Rf8 h2 72. Rh8+ (72. b8=B h1=Q+ 73. f3 Qc1+ 74. Kd6 Rd2+ 75. Ke6 Qc4+ 76. Ke7 Qc5+) 72... Kg7 73. Rxh2 (73. b8=R Rxb8 74. Rxh2 Rd8 $11) 73... Rc2+ 74. Kd5 $18) 71. Kd7 {[%emt 0:00:08]} Rb2 {[%emt 0:00:50]} 72. Kc7 {[%emt 0:00:11]} h3 $2 {[%emt 0:00:17][%mdl 8192]} (72... Rc2+ $11 73. Kb6 Rb2+ 74. Kc7 Rc2+ 75. Kd8 Rd2+ 76. Kc8 Rc2+ 77. Kd7 (77. Rc7 Rxf2 78. Re7 Rc2+ 79. Kd8 Rb2 $11) 77... Rb2 78. Kc7) 73. Rf3 {[%emt 0:00:15] White mates.} (73. b8=B $2 {is the wrong capture.} h2 74. Ba7 h1=Q $19) 73... Rc2+ {[%emt 0:00:18]} 74. Kd6 {[%emt 0:00:34]} Rd2+ {[%emt 0:00:12]} 75. Kc5 {[%emt 0:00:28]} Rb2 {[%emt 0:01:25]} 76. Rxh3+ {[%emt 0:00:11]} Kg7 {[%emt 0:00:26]} 77. Kc6 {[%emt 0:00:18]} Rc2+ {[%emt 0:00:05]} 78. Kb6 {[%emt 0:00:53]} Rb2+ {[%emt 0:00:04]} 79. Ka7 {[%emt 0:00:12]} Ra2+ {[%emt 0:00:05] [#]} 80. Kb8 $1 {[%emt 0:00:09]} Rxf2 {[%emt 0:00:18]} 81. Rc3 {[%emt 0:00:23]} Kh6 {[%emt 0:01:14]} 82. Kc7 {[%emt 0:01:19]} Rb2 {[%emt 0:02:14]} 83. b8=Q {[%emt 0:01:34]} ({Worse is} 83. b8=B g5 $11) ({Not} 83. Rh3+ Kg5 $16) 83... Rxb8 {[%emt 0:00:04]} 84. Kxb8 g5 {[%emt 0:00:05]} 85. Kc7 {[%emt 0:00:14]} g4 {[%emt 0:00:08]} 86. Rc5 {[%emt 0:00:34] Weighted Error Value: White=0.35/Black=0.36} 1-0

[Event "SixDays Budapest March GM-A 2023"]
[Site "Budapest"]
[Date "2023.03.26"]
[Round "4.3"]
[White "Pap, Misa"]
[Black "Pfreundt, Jakob"]
[Result "1/2-1/2"]
[ECO "B15"]
[WhiteElo "2403"]
[BlackElo "2407"]
[Annotator "TA"]
[PlyCount "112"]
[EventDate "2023.03.24"]
[EventType "tourn"]
[EventCountry "HUN"]
[SourceTitle "playchess.com"]
[Source "ChessBase"]
[SourceQuality "1"]
[TimeControl "5400+30"]

{[%evp 14,112,18,30,26,31,50,45,40,12,16,16,20,23,33,23,22,22,26,1,5,0,0,0,0,0,0,0,0,0,7,0,10,8,16,14,25,8,25,17,19,0,0,-5,0,0,0,0,0,-20,0,0,0,0,0,0,0,0,-4,-34,-37,-44,-8,-10,-10,-46,-20,-29,-20,-64,-64,-89,-89,-89,-89,-89,-89,-89,-89,-89,-89,-89,0,-8,0,0,0,0,0,0,0,0,0,0,0,0,0,0,0,0,0]} 1. e4 {[%emt 0:00:34]} c6 {[%emt 0:02:40]} 2. d4 {[%emt 0:00:16]} d5 {[%emt 0:00:06]} 3. Nd2 {[%emt 0:00:06]} dxe4 {[%emt 0:00:09]} 4. Nxe4 {[%emt 0:00:04]} Nf6 {[%emt 0:00:15]} 5. Nxf6+ {[%emt 0:00:07]} exf6 {[%emt 0:00:07]} 6. c3 {[%emt 0:00:04]} Bd6 {[%emt 0:00:18]} 7. Bd3 {[%emt 0:00:08]} O-O {[%emt 0:00:26]} 8. Qc2 {[%emt 0:00:03] Active counter play!} Re8+ {[%emt 0:00:23] B15: Caro-Kann: 3 Nc3: 3...g6 and 3...dxe4 4 Nxe4 Nf6 5 Nxf6+ exf6.} 9. Ne2 {[%emt 0:00:06]} h5 {[%emt 0:00:23]} 10. O-O {[%emt 0:00:05]} h4 {[%emt 0:00:40] White is slightly better.} 11. Bf4 {[%emt 0:00:07]} Na6 $1 {[%emt 0:02:41][%cal Bb8a6,Ba6c7,Bc7e6][%mdl 32] 11...Na6 scores better than 11...h3.} (11... Rxe2 $2 12. Qxe2 Bxf4 13. Qe4 $18) 12. h3 {[%emt 0:01:17]} Nc7 {[%emt 0:05:21][%cal Oe8e2]} ({Much less strong is} 12... Rxe2 13. Qxe2 Bxf4 14. Qe4 $16) 13. Qd2 {[%emt 0:00:14] [#]} a5 $146 {[%emt 0:30:19]} ({Predecessor:} 13... Nd5 14. Bxd6 Qxd6 15. Rfe1 Bd7 16. Rad1 a5 17. c4 Ne7 18. Nc3 Rad8 19. b3 Bc8 {½-½ Horvath,A (2520)-Prohaszka,P (2570) HUN-ch Rapid 2022 (7)}) 14. Rfe1 {[%emt 0:09:24]} Ne6 {[%emt 0:01:29]} 15. Bxd6 {[%emt 0:05:13]} Qxd6 {[%emt 0:00:04]} 16. Qe3 {[%emt 0:08:26]} Nc7 {[%emt 0:27:22]} 17. Qf4 {[%emt 0:04:41]} Qxf4 {[%emt 0:00:20]} 18. Nxf4 {[%emt 0:00:05]} Bd7 {[%emt 0:01:32]} 19. Be4 {[%emt 0:19:31]} Nb5 {[%emt 0:09:13]} 20. Nd3 {[%emt 0:05:40]} b6 {[%emt 0:02:31]} 21. Bf3 {[%emt 0:05:37]} Rad8 {[%emt 0:05:33]} 22. Red1 {[%emt 0:01:37]} Rc8 {[%emt 0:02:34]} 23. Rac1 {[%emt 0:00:43]} Be6 {[%emt 0:02:46]} 24. b3 {[%emt 0:08:39]} Red8 {[%emt 0:01:20]} 25. Nf4 {[%emt 0:00:41]} (25. Nb2 $5 {[%cal Rb2a4]}) 25... Bf5 {[%emt 0:00:59]} 26. Ne2 {[%emt 0:03:15]} Nd6 {[%emt 0:00:19]} 27. d5 {[%emt 0:01:12]} c5 {[%emt 0:00:22]} 28. c4 {[%emt 0:00:25]} Bd7 {[%emt 0:01:08]} 29. Nc3 {[%emt 0:00:58]} f5 {[%emt 0:00:21]} 30. Re1 {[%emt 0:00:46]} Re8 {[%emt 0:00:08]} 31. Be2 {[%emt 0:01:24]} f4 {[%emt 0:01:00]} 32. Bg4 {[%emt 0:00:23]} Rxe1+ {[%emt 0:01:03]} 33. Rxe1 {[%emt 0:00:07]} Re8 {[%emt 0:00:04]} 34. Rc1 {[%emt 0:03:18]} f5 {[%emt 0:00:54]} 35. Bh5 {[%emt 0:00:15]} Re5 {[%emt 0:00:32]} 36. Bg6 {[%emt 0:01:07]} Kf8 {[%emt 0:00:31]} 37. Kf1 {[%emt 0:03:03] [#]} f3 $1 {[%emt 0:02:18] Wards off Ne2} 38. gxf3 {[%emt 0:04:24] Strongly threatening f4.} f4 {[%emt 0:00:06][%cal Oe5g5] ...Rg5! would be deadly.} 39. Ne4 {[%emt 0:00:31] Inhibits Rg5.} (39. Bd3 $5 {[%cal Rf1g2]}) 39... Bxh3+ {[%emt 0:00:25]} (39... Nc8 $5 {[%cal Rc8e7]} 40. Ke2 (40. Kg2 $2 Ne7 $19) 40... Ne7 $11) 40. Kg1 {[%emt 0:01:59]} Nxe4 {[%emt 0:01:08]} 41. Bxe4 $11 {[%emt 0:00:07][%mdl 4096] Endgame KRB-KRB} Ke7 {[%emt 0:00:27]} 42. a3 {[%emt 0:02:36][%cal Ob3b4]} Bd7 {[%emt 0:00:14]} 43. b4 {[%emt 0:00:41]} axb4 {[%emt 0:00:16]} 44. axb4 {[%emt 0:00:05]} cxb4 {[%emt 0:00:15] ...Kd6 is the strong threat.} 45. c5 {[%emt 0:00:41]} bxc5 {[%emt 0:00:04]} 46. Rxc5 {[%emt 0:00:03]} Kd6 {[%emt 0:00:27]} (46... b3 {keeps more tension.} 47. Rc3 b2 48. Rb3 Bf5) 47. Rc4 {[%emt 0:00:01] [#]} Rg5+ {[%emt 0:01:32]} ({Better is} 47... b3 $1 $17 48. Rb4 Bf5 49. Bxf5 Rxf5 50. Rxb3 g5 51. Rb6+ Kc5) 48. Kh1 $1 {[%emt 0:00:38] The position is equal.} h3 {[%emt 0:00:36]} 49. Rxb4 {[%emt 0:00:18]} Rg2 {[%emt 0:00:18]} 50. Rb6+ {[%emt 0:01:19]} Kc5 {[%emt 0:00:01]} 51. Rb7 {[%emt 0:00:31]} Kd6 {[%emt 0:00:02]} 52. Rb6+ {[%emt 0:01:31]} Kc5 {[%emt 0:00:16]} 53. Rb7 {[%emt 0:00:33]} Bb5 {[%emt 0:02:00]} 54. Rc7+ {[%emt 0:01:23]} Kd6 {[%emt 0:00:18]} 55. Rb7 {[%emt 0:00:37]} Kc5 {[%emt 0:00:27]} 56. Rc7+ {[%emt 0:00:45]} Kd6 {[%emt 0:00:45] Weighted Error Value: White=0.06 (flawless) /Black=0.06 (flawless)} 1/2-1/2